bitfinex/quotes_ETHUSD_20230404
["timestamp","ask_amount","ask_price","bid_price","bid_amount"]
[1680622915363,0.11000001,1861.5,1861.0,0.21605145]
[1680622915846,0.26041001,1861.5,1861.0,0.00112145]
[1680622917241,0.63113798,1861.5,1861.0,0.00112145]
[1680622917448,4.55116016,1861.5,1861.0,0.00112145]
[1680622917607,1.154,1861.3,1860.8,10.7267]
[1680622917804,0.45132,1861.2,1860.8,10.7267]
[1680622918147,0.45132,1861.2,1860.8,5.287]
[1680622918348,1.213612,1861.2,1860.7,0.002]
[1680622918560,1.213612,1861.2,1860.6,0.56090423]
[1680622918850,1.216612,1861.2,1860.6,0.56090423]
[1680622919194,1.222612,1861.2,1860.6,0.56090423]
[1680622919645,0.1222612,1861.1,1860.6,0.56090423]
[1680622919950,0.15046,1861.0,1860.6,0.56090423]
[1680622920851,0.01198361,1861.2,1860.6,0.56090423]
[1680622921057,0.012,1861.3,1860.7,4.48092641]
[1680622921370,0.11000001,1861.5,1860.7,4.48092641]
[1680622921371,0.009,1861.4,1860.9,0.77584423]
[1680622921527,0.009,1861.4,1860.9,0.56090423]
[1680622921528,0.15942,1861.4,1860.9,0.56090423]
[1680622921865,0.15942,1861.4,1861.0,0.05609042]
[1680622922760,0.41983001,1861.5,1861.0,0.05609042]
[1680622922968,0.57025001,1861.5,1861.0,0.05609042]
[1680622923967,0.26942001,1861.5,1861.0,0.05609042]
[1680622924168,0.11900001,1861.5,1861.0,0.27102042]
[1680622924356,0.11900001,1861.5,1861.0,0.83192465]
[1680622924544,0.11900001,1861.5,1861.0,0.27102042]
[1680622924745,0.26941001,1861.5,1861.0,0.05609042]
[1680622925284,0.11900001,1861.5,1861.0,0.27102042]
[1680622925480,0.26941001,1861.5,1861.0,0.05609042]
[1680622927483,0.11900001,1861.5,1861.0,0.27102042]
[1680622927686,0.26941001,1861.5,1861.0,0.05609042]
[1680622927893,0.11600001,1861.5,1861.0,4.02781683]
[1680622928104,0.11600001,1861.5,1861.1,0.40278168]
[1680622928105,0.26041001,1861.5,1861.1,0.40278168]
[1680622928247,0.26041001,1861.5,1861.0,0.61699465]
[1680622928248,0.56124001,1861.5,1861.0,0.05609042]
[1680622928986,0.26041001,1861.5,1861.0,0.05609042]
[1680622929212,0.63053634,1861.5,1860.9,0.56090423]
[1680622929799,3.39655852,1861.5,1860.9,0.56090423]
[1680622929949,3.40555852,1861.5,1860.9,0.56090423]
[1680622931358,3.39265504,1861.5,1860.9,0.56690423]
[1680622931562,3.39265504,1861.5,1860.9,0.72943024]
[1680622933076,3.41439827,1861.5,1860.9,0.72943024]
[1680622933995,3.41439827,1861.5,1860.9,0.94437024]
[1680622934482,3.41439827,1861.5,1860.9,0.72943024]
[1680622935322,3.34510194,1861.5,1860.9,0.72943024]
[1680622935526,0.27824976,1861.5,1860.9,0.94437024]
[1680622935715,0.27824976,1861.5,1860.9,0.93837024]
[1680622935898,0.27824976,1861.5,1860.9,0.94237024]
[1680622936099,0.27824976,1861.5,1861.0,0.09423702]
[1680622936391,0.27824976,1861.5,1861.0,0.65514125]
[1680622937387,0.27824976,1861.5,1861.0,0.09423702]
[1680622937935,0.57907976,1861.5,1861.0,0.09423702]
[1680622938154,0.57907976,1861.5,1860.9,1.57283608]
[1680622938350,1.72407976,1861.5,1860.9,0.56490423]
[1680622938504,1.72407976,1861.5,1860.9,0.56090423]
[1680622938710,1.154,1861.3,1860.9,0.56090423]
[1680622938909,0.45132,1861.2,1860.9,0.006]
[1680622939605,0.45132,1861.2,1860.9,0.56090423]
[1680622939805,0.45132,1861.2,1860.8,1.41031007]
[1680622939999,0.611852,1861.2,1860.8,0.56690423]
[1680622940447,0.611852,1861.2,1860.9,0.56090423]
[1680622941037,0.45132,1861.2,1860.9,0.56090423]
[1680622942857,0.45132,1861.2,1860.8,1.41031007]
[1680622943059,2.76602218,1861.1,1860.8,0.56090423]
[1680622943353,0.72796222,1861.0,1860.7,0.56090423]
[1680622944361,1.87296222,1861.0,1860.7,0.56090423]
[1680622944703,1.87296222,1861.0,1860.6,0.56090423]
[1680622944927,0.18729622,1860.9,1860.6,0.56090423]
[1680622945250,0.45141,1860.8,1860.6,0.56090423]
[1680622945896,0.45141,1860.8,1860.5,1.41031007]
[1680622946050,0.45141,1860.8,1860.5,0.006]
[1680622946051,1.60541,1860.8,1860.5,0.006]
[1680622946390,1.0534,1860.6,1860.4,0.56290423]
[1680622946592,1.0534,1860.6,1860.4,0.56090423]
[1680622946746,4.97342218,1860.6,1860.4,0.56090423]
[1680622946945,4.97342218,1860.6,1860.4,0.56690423]
[1680622947177,0.64783222,1860.5,1860.4,0.004]
[1680622947378,0.64783222,1860.5,1860.3,0.56690423]
[1680622947552,0.15049,1860.5,1860.3,1.41031007]
[1680622947761,0.15049,1860.5,1860.3,0.56690423]
[1680622948088,0.15049,1860.6,1860.3,0.56690423]
[1680622948389,0.15049,1860.6,1860.3,0.56090423]
[1680622948559,0.15049,1860.6,1860.3,0.56290423]
[1680622948945,0.15049,1860.6,1860.3,0.56090423]
[1680622950093,0.45146,1860.6,1860.3,0.70193524]
[1680622952063,0.45146,1860.6,1860.3,0.56090423]
[1680622952964,0.45146,1860.6,1860.2,0.56690423]
[1680622953168,0.45146,1860.6,1860.2,0.56290423]
[1680622953898,3.2182423,1860.6,1860.2,0.56090423]
[1680622954082,0.47232423,1860.5,1860.2,0.56090423]
[1680622954287,0.1505,1860.5,1860.2,0.56090423]
[1680622954906,0.15049,1860.5,1860.2,0.56090423]
[1680622955707,0.15049,1860.6,1860.2,0.56090423]
[1680622956489,0.45146,1860.6,1860.2,0.56090423]
[1680622956676,4.6932304,1860.6,1860.2,0.56090423]
[1680622956879,4.6932304,1860.6,1860.1,0.56690423]
[1680622957810,4.6932304,1860.6,1860.1,0.56290423]
[1680622958909,4.6932304,1860.6,1860.1,0.56090423]
[1680622959418,4.6932304,1860.6,1860.1,0.56290423]
[1680622959579,4.3922604,1860.6,1860.1,0.56290423]
[1680622959778,4.3922604,1860.6,1860.1,0.73000144]
[1680622961204,4.6932304,1860.6,1860.1,0.73000144]
[1680622961376,4.6932304,1860.6,1860.1,0.56290423]
[1680622961576,4.6932304,1860.6,1860.1,0.56090423]
[1680622961902,15.1942304,1860.6,1860.1,0.56090423]
[1680622962111,15.1972304,1860.6,1860.1,0.56290423]
[1680622962414,1.154,1860.4,1860.0,0.05161206]
[1680622962596,0.45153,1860.3,1860.0,0.04561206]
[1680622962766,0.94888822,1860.3,1860.0,0.04561206]
[1680622963280,3.7149104,1860.3,1860.0,0.04561206]
[1680622964101,0.49735822,1860.3,1860.0,0.04561206]
[1680622964294,1.45801,1860.4,1860.0,0.04561206]
[1680622964295,1.30451,1860.4,1860.0,0.04561206]
[1680622964532,4.07053218,1860.4,1860.0,0.04561206]
[1680622964851,1.30451,1860.4,1860.0,0.04561206]
[1680622965007,0.45149,1860.5,1860.0,0.04561206]
[1680622965349,0.45149,1860.5,1860.0,0.13816969]
[1680622969964,0.1505,1860.5,1860.0,2.90419187]
[1680622970115,0.1505,1860.5,1860.0,3.6821461]
[1680622970321,0.1505,1860.5,1860.0,9.0666961]
[1680622970561,0.45147,1860.6,1860.1,0.90666961]
[1680622970868,0.15049,1860.6,1860.1,1.46757384]
[1680622971448,0.15049,1860.6,1860.1,1.46957384]
[1680622973465,0.15049,1860.6,1860.1,1.68461384]
[1680622973676,0.15049,1860.6,1860.2,0.16846138]
[1680622975926,0.15049,1860.6,1860.1,1.46957384]
[1680622977872,0.15049,1860.6,1860.1,1.68461384]
[1680622978071,0.45144,1860.7,1860.1,1.68461384]
[1680622978367,0.30096,1860.7,1860.1,1.68461384]
[1680622978567,0.15049,1860.6,1860.2,0.16846138]
[1680622979125,0.15049,1860.6,1860.2,0.72936561]
[1680622979328,0.15049,1860.6,1860.2,0.16846138]
[1680622979639,0.15049,1860.6,1860.2,0.72936561]
[1680622982272,0.1316456,1860.8,1860.2,8.99740779]
[1680622982481,10.3062,1860.9,1860.6,0.00332728]
[1680622982773,10.45966,1860.9,1860.6,0.00332728]
[1680622983579,10.3092,1860.9,1860.6,0.00332728]
[1680622983883,10.45966,1860.9,1860.6,0.00332728]
[1680622985584,14.60355918,1860.9,1860.6,0.00332728]
[1680622985894,0.02174323,1860.8,1860.6,0.00332728]
[1680622986042,0.17222323,1860.8,1860.6,0.00332728]
[1680622987938,0.16872269,1860.8,1860.6,0.00332728]
[1680622988138,0.01824269,1860.8,1860.6,0.00332728]
[1680622988340,1.079957,1860.9,1860.6,0.00332728]
[1680622988580,0.15045,1861.0,1860.6,0.00332728]
[1680622988779,11.379011,1861.0,1860.6,0.00332728]
[1680622988969,11.382011,1861.0,1860.6,0.00332728]
[1680622990804,0.003,1861.0,1860.6,0.56423151]
[1680622991100,0.15045,1861.0,1860.6,0.56423151]
[1680622991307,0.3009,1861.1,1860.6,0.00332728]
[1680622991462,0.15046,1861.0,1860.6,0.56423151]
[1680622991664,0.15046,1861.0,1860.6,0.70545495]
[1680622992181,0.45137,1861.0,1860.6,0.14455072]
[1680622992589,0.45137,1861.0,1860.6,0.00332728]
[1680622993571,0.15046,1861.0,1860.6,0.00332728]
[1680622993802,0.45137,1861.0,1860.6,0.00332728]
[1680623001195,4.36239218,1861.0,1860.6,0.00332728]
[1680623001814,4.38063487,1861.0,1860.6,0.00332728]
[1680623002019,0.43806349,1860.9,1860.6,0.00332728]
[1680623002265,0.45141,1860.8,1860.6,0.00332728]
[1680623005323,0.15047,1860.8,1860.6,0.00332728]
[1680623008670,0.003,1861.0,1860.6,0.00792407]
[1680623008876,0.15046,1860.9,1860.6,0.00792407]
[1680623009023,0.15046,1860.9,1860.6,0.0648069]
[1680623009470,4.9443,1861.1,1860.7,8.43202218]
[1680623009471,0.003,1861.1,1860.7,8.43202218]
[1680623009691,0.69831046,1861.3,1860.8,0.56090423]
[1680623009692,0.1356324,1861.3,1860.8,0.56090423]
[1680623009841,0.15042,1861.4,1860.9,0.05609042]
[1680623010557,0.45126,1861.4,1860.9,0.05609042]
[1680623010768,0.45126,1861.4,1860.9,0.61699465]
[1680623010969,0.45126,1861.4,1861.0,0.06169946]
[1680623011281,0.45126,1861.4,1860.9,0.05609042]
[1680623011481,0.44729313,1861.4,1860.9,0.05609042]
[1680623012275,3.21331531,1861.4,1860.9,0.05609042]
[1680623012477,3.21331531,1861.4,1860.8,0.006]
[1680623013058,3.231558,1861.4,1860.8,0.006]
[1680623013802,1.154,1861.3,1860.8,0.01059629]
[1680623014000,0.15044,1861.2,1860.8,0.01059629]
[1680623014157,0.15044,1861.2,1860.8,0.59644634]
[1680623017861,1.6053,1861.3,1860.8,0.59644634]
[1680623018714,4.37132218,1861.3,1860.8,0.01059629]
[1680623018864,1.154,1861.1,1860.8,0.006]
[1680623019205,0.45136,1861.0,1860.8,0.002]
[1680623019372,0.45136,1861.0,1860.8,0.006]
[1680623019701,0.611896,1861.0,1860.7,0.002]
[1680623019906,0.611896,1861.0,1860.6,0.56823151]
[1680623019907,3.07700818,1861.0,1860.6,0.57023151]
[1680623020924,4.53191818,1861.0,1860.6,0.00932728]
[1680623021483,3.37791818,1861.0,1860.6,0.00932728]
[1680623021884,3.37791818,1861.0,1860.6,0.00732728]
[1680623022115,3.37791818,1861.0,1860.6,0.00332728]
[1680623023211,0.33779182,1860.9,1860.6,0.00332728]
[1680623023417,0.15047,1860.8,1860.6,0.00332728]
[1680623024417,0.48825182,1860.9,1860.6,0.00332728]
[1680623025013,0.15046,1861.0,1860.6,0.56423151]
[1680623026036,0.45137,1861.0,1860.6,0.56423151]
[1680623027340,3.21739218,1861.0,1860.6,0.00332728]
[1680623027521,0.15047,1860.8,1860.6,0.00332728]
[1680623027902,0.45141,1860.8,1860.6,0.00332728]
[1680623030445,0.15047,1860.8,1860.6,0.00332728]
[1680623030605,0.15047,1860.9,1860.6,0.00332728]
[1680623030813,6.0329,1861.1,1860.6,0.00332728]
[1680623031013,0.15045,1861.0,1860.6,0.00332728]
[1680623032312,0.45136,1861.0,1860.6,0.00332728]
[1680623033002,0.15045,1861.0,1860.6,0.56423151]
[1680623034438,0.15045,1861.0,1860.7,0.00443107]
[1680623034651,0.15045,1861.0,1860.7,0.06189733]
[1680623035496,10.55508269,1861.2,1860.7,0.06189733]
[1680623035842,10.54608269,1861.2,1860.8,0.56090423]
[1680623036074,10.54608269,1861.2,1860.8,0.72902197]
[1680623036416,10.39564269,1861.2,1860.8,0.72902197]
[1680623037346,0.02124269,1861.2,1860.8,0.72902197]
[1680623037551,0.16868269,1861.2,1860.8,0.72902197]
[1680623038372,0.16868269,1861.2,1860.9,0.00440651]
[1680623041844,9.9001,1861.4,1860.9,0.08234541]
[1680623042039,10.05052,1861.4,1860.9,0.08234541]
[1680623042458,10.05052,1861.4,1860.9,0.29728541]
[1680623042851,10.05052,1861.4,1860.9,0.08234541]
[1680623043642,10.05052,1861.4,1860.9,0.29728541]
[1680623043882,10.05052,1861.4,1860.9,0.08234541]
[1680623045288,9.9001,1861.4,1860.9,0.29728541]
[1680623046377,10.05052,1861.4,1860.9,0.08234541]
[1680623046598,10.05052,1861.4,1860.9,1.48665548]
[1680623046796,10.05052,1861.4,1861.0,0.70956978]
[1680623047286,9.9001,1861.4,1861.0,0.71396401]
[1680623047497,12.66612218,1861.4,1861.0,0.56090423]
[1680623047666,12.81654218,1861.4,1860.9,0.56290423]
[1680623047993,12.81654218,1861.4,1860.9,0.56090423]
[1680623048156,1.43208422,1861.3,1860.9,0.56090423]
[1680623048752,1.43208422,1861.3,1860.9,1.40431007]
[1680623048950,1.43208422,1861.3,1860.9,0.56090423]
[1680623049159,1.43208422,1861.3,1860.9,1.40431007]
[1680623049376,3.93826487,1861.2,1860.9,0.56090423]
[1680623049587,3.93826487,1861.2,1860.8,1.40431007]
[1680623049588,0.15045,1861.1,1860.8,1.40431007]
[1680623049800,3.21736218,1861.1,1860.9,0.56090423]
[1680623050006,3.67064351,1861.1,1860.9,0.56090423]
[1680623050147,3.36975351,1861.1,1860.8,0.56690423]
[1680623050351,3.21930351,1861.1,1860.9,0.56090423]
[1680623050598,0.33697535,1861.0,1860.9,0.56090423]
[1680623050752,1.31845111,1861.2,1860.9,0.56090423]
[1680623050953,1.43208422,1861.3,1860.9,1.40431007]
[1680623051168,15.7084,1861.4,1860.9,0.56550028]
[1680623051370,11.50537,1861.4,1861.0,0.56529846]
[1680623051569,11.50537,1861.4,1861.0,0.00439423]
[1680623051570,14.27139218,1861.4,1861.0,0.00439423]
[1680623051750,14.27139218,1861.4,1861.0,0.56529846]
[1680623051751,1.42713922,1861.3,1861.0,0.56529846]
[1680623051954,4.3435914,1861.3,1861.0,0.00439423]
[1680623052213,4.1931614,1861.3,1861.0,0.00439423]
[1680623052553,1.42713922,1861.3,1861.0,0.56529846]
[1680623052754,1.42713922,1861.3,1861.0,0.00439423]
[1680623052950,1.42713922,1861.3,1861.0,0.56529846]
[1680623053200,0.012,1861.4,1861.0,0.56529846]
[1680623053384,0.10609653,1861.5,1861.1,0.56090423]
[1680623053568,0.10609653,1861.5,1861.1,2.06536423]
[1680623053904,0.10609653,1861.5,1861.4,1.50423]
[1680623054072,0.10609653,1861.5,1861.4,0.64467]
[1680623054270,0.10609653,1861.5,1861.4,1.96518224]
[1680623054451,0.10609653,1861.5,1861.4,4.17030019]
[1680623054650,0.10609653,1861.5,1861.4,4.73579923]
[1680623055285,0.10609653,1861.5,1861.4,4.174895]
[1680623055498,0.10609653,1861.5,1861.4,4.73579923]
[1680623055682,0.10609653,1861.5,1861.4,5.01830084]
[1680623055889,0.10609653,1861.5,1861.4,6.17230084]
[1680623056058,0.10609653,1861.5,1861.4,12.11972101]
[1680623056059,0.10212188,1861.5,1861.4,12.11972101]
[1680623056454,0.10212188,1861.5,1861.4,6.45372101]
[1680623056656,0.10212188,1861.5,1861.4,7.29595797]
[1680623056897,0.10212188,1861.5,1861.4,6.45372101]
[1680623057257,0.10212188,1861.5,1861.4,6.73492751]
[1680623057469,0.10212188,1861.5,1861.4,6.16956226]
[1680623057699,0.10212188,1861.5,1861.4,6.44978468]
[1680623057903,0.10212188,1861.5,1861.4,7.29044461]
[1680623058070,0.10212188,1861.5,1861.4,6.44978468]
[1680623058275,0.10212188,1861.5,1861.4,5.29578468]
[1680623058516,0.10212188,1861.5,1861.4,6.13646321]
[1680623058664,0.10212188,1861.5,1861.4,5.29578468]
[1680623059759,0.10212188,1861.5,1861.4,6.70181719]
[1680623059959,0.10212188,1861.5,1861.4,5.29578468]
[1680623060408,0.10212188,1861.5,1861.4,6.13524028]
[1680623060562,0.10212188,1861.5,1861.4,5.29578468]
[1680623061266,0.10212188,1861.5,1861.4,5.01435235]
[1680623061477,0.10212188,1861.5,1861.4,5.29578468]
[1680623061704,0.10212188,1861.5,1861.4,5.0143437]
[1680623062210,0.10212188,1861.5,1861.4,6.1350541]
[1680623062430,0.10212188,1861.5,1861.4,4.73393333]
[1680623062730,0.10212188,1861.5,1861.4,5.57319451]
[1680623062890,0.10212188,1861.5,1861.4,4.73396039]
[1680623063317,0.10212188,1861.5,1861.4,10.994895]
[1680623063487,0.11000001,1861.7,1861.5,0.5]
[1680623063702,0.11000001,1861.7,1861.6,6.80808218]
[1680623063910,0.11000001,1861.7,1861.6,12.24408218]
[1680623064139,0.11000001,1861.7,1861.6,8.42408218]
[1680623064799,0.11000001,1861.7,1861.6,5.65806]
[1680623064999,0.11000001,1861.7,1861.6,6.21706881]
[1680623065304,0.11000001,1861.7,1861.6,3.75137604]
[1680623065628,0.11000001,1861.7,1861.6,2.65806]
[1680623066599,0.11000001,1861.7,1861.6,5.42408218]
[1680623067005,0.11000001,1861.7,1861.6,11.09008218]
[1680623067233,0.11000001,1861.7,1861.6,14.3246765]
[1680623068730,1e-08,1861.7,1861.6,15.4676765]
[1680623070197,1e-08,1861.7,1861.6,15.46488667]
[1680623071708,1e-08,1861.7,1861.6,8.64488667]
[1680623071906,1e-08,1861.7,1861.6,7.27188667]
[1680623072305,1e-08,1861.7,1861.6,4.50586449]
[1680623072720,1e-08,1861.7,1861.6,7.27188667]
[1680623073026,1e-08,1861.7,1861.6,9.43741434]
[1680623075593,0.06000002,1861.8,1861.6,6.66679784]
[1680623079544,0.06000002,1861.8,1861.6,4.50127017]
[1680623080297,0.06000002,1861.8,1861.7,3.41517625]
[1680623080497,0.06000002,1861.8,1861.7,5.93615407]
[1680623081540,0.06000002,1861.8,1861.7,5.94432236]
[1680623083935,0.06000002,1861.8,1861.7,5.93972829]
[1680623085047,0.06000002,1861.8,1861.7,5.29516829]
[1680623085809,0.06000002,1861.8,1861.7,5.51001829]
[1680623086243,0.06000002,1861.8,1861.7,5.93972829]
[1680623086455,0.06000002,1861.8,1861.7,6.53390112]
[1680623086608,0.06000002,1861.8,1861.7,9.2999233]
[1680623087417,0.06000002,1861.8,1861.7,9.30451737]
[1680623089222,0.06000002,1861.8,1861.7,9.29634908]
[1680623090767,0.06000002,1861.8,1861.7,12.29634908]
[1680623091535,0.06000002,1861.8,1861.7,12.85535789]
[1680623092134,0.06000002,1861.8,1861.7,12.29634908]
[1680623092344,0.06000002,1861.8,1861.7,12.29175501]
[1680623092742,0.06000002,1861.8,1861.7,11.86204501]
[1680623093538,0.06000002,1861.8,1861.7,12.42105382]
[1680623093762,0.06000002,1861.8,1861.7,5.88117283]
[1680623094074,0.06000002,1861.8,1861.7,5.50185]
[1680623095159,0.06000002,1861.8,1861.7,9.25659099]
[1680623095454,0.06000002,1861.8,1861.7,9.54068946]
[1680623096077,0.06000002,1861.8,1861.7,9.82306593]
[1680623096292,0.06000002,1861.8,1861.7,11.57235977]
[1680623096602,2e-08,1862.0,1861.7,67.78093664]
[1680623096748,2e-08,1862.0,1861.9,18.68886218]
[1680623096953,0.11000001,1862.4,1862.1,5.666]
[1680623097148,0.11000001,1862.4,1862.3,10.98902628]
[1680623097342,0.11000001,1862.4,1862.3,18.00952628]
[1680623097795,0.11000001,1862.4,1862.3,20.77952628]
[1680623098156,0.11000001,1862.4,1862.3,20.7794002]
[1680623098487,0.11000001,1862.4,1862.3,19.37652218]
[1680623098702,0.11000001,1862.4,1862.3,23.05157742]
[1680623098846,0.11000001,1862.4,1862.3,21.87799844]
[1680623099052,0.11000001,1862.4,1862.3,23.28158851]
[1680623099359,0.11000001,1862.4,1862.3,28.80688851]
[1680623099587,0.11000001,1862.4,1862.3,22.91088851]
[1680623099940,0.11000001,1862.4,1862.3,21.47621633]
[1680623100190,0.11000001,1862.4,1862.3,18.47621633]
[1680623100403,0.11000001,1862.4,1862.3,16.49414844]
[1680623100692,0.11000001,1862.4,1862.3,18.47689404]
[1680623100989,0.11000001,1862.4,1862.3,19.88048411]
[1680623101152,0.11000001,1862.4,1862.3,18.76148109]
[1680623101691,0.11000001,1862.4,1862.3,24.42748109]
[1680623103884,0.11000001,1862.4,1862.3,24.65748109]
[1680623104096,0.11000001,1862.4,1862.3,27.65748109]
[1680623104297,0.11000001,1862.4,1862.3,28.81148109]
[1680623104614,0.11000001,1862.4,1862.3,27.40789102]
[1680623104923,0.11000001,1862.4,1862.3,29.07926805]
[1680623105678,0.11000001,1862.7,1862.3,29.07926805]
[1680623105913,0.11000001,1862.7,1862.4,14.5052203]
[1680623106113,0.11000001,1862.7,1862.4,15.1495403]
[1680623106272,0.11000001,1862.7,1862.4,16.5528182]
[1680623106475,0.11000001,1862.7,1862.4,15.1495403]
[1680623107009,0.11000001,1862.7,1862.4,15.43022008]
[1680623107209,0.11000001,1862.7,1862.4,16.82005512]
[1680623107524,0.11000001,1862.7,1862.4,15.41677722]
[1680623107676,0.11000001,1862.7,1862.4,16.22953164]
[1680623108075,0.11000001,1862.7,1862.4,16.51107363]
[1680623108999,0.11000001,1862.7,1862.4,17.63267542]
[1680623109196,0.11000001,1862.7,1862.4,16.22939752]
[1680623109603,0.11000001,1862.7,1862.4,13.7136966]
[1680623109838,0.11000001,1862.7,1862.4,13.43347365]
[1680623110038,0.11000001,1862.7,1862.4,13.20347365]
[1680623111433,0.11000001,1862.7,1862.4,13.43347365]
[1680623112027,0.11000001,1862.7,1862.4,14.58747365]
[1680623113712,1e-08,1862.5,1862.4,18.48285264]
[1680623113923,1e-08,1862.5,1862.4,18.75095177]
[1680623114333,1e-08,1862.5,1862.4,17.62867708]
[1680623115320,1e-08,1862.5,1862.4,16.31782353]
[1680623115642,1e-08,1862.5,1862.4,15.16382353]
[1680623115843,1e-08,1862.5,1862.4,15.72375245]
[1680623116531,1e-08,1862.5,1862.4,15.16382353]
[1680623116696,1e-08,1862.5,1862.4,15.97657795]
[1680623116897,1e-08,1862.5,1862.4,16.20657795]
[1680623117641,1e-08,1862.5,1862.4,16.47467708]
[1680623118023,1e-08,1862.5,1862.4,17.03441092]
[1680623118425,1e-08,1862.5,1862.4,16.2216565]
[1680623119028,1e-08,1862.5,1862.4,15.38157498]
[1680623119558,1e-08,1862.5,1862.4,15.11347585]
[1680623126465,1e-08,1862.5,1862.4,15.11347585]
[1680623128965,1e-08,1862.5,1862.4,13.73847585]
[1680623129817,1e-08,1862.5,1862.4,13.17874201]
[1680623130058,1e-08,1862.5,1862.4,7.51274201]
[1680623131456,1e-08,1862.5,1862.4,8.07247585]
[1680623132651,1e-08,1862.5,1862.4,8.32178958]
[1680623133423,0.11000001,1862.6,1862.4,8.32178958]
[1680623134593,0.0853337,1862.6,1862.5,0.43661081]
[1680623134750,0.0853337,1862.6,1862.5,3.20263299]
[1680623134953,0.0853337,1862.6,1862.5,0.22185081]
[1680623135688,0.06090857,1862.6,1862.5,0.22185081]
[1680623136297,0.06090857,1862.6,1862.5,0.43661081]
[1680623136495,0.03672222,1862.6,1862.5,0.83624528]
[1680623136896,0.03672222,1862.6,1862.5,1.26577528]
[1680623137573,0.01277226,1862.6,1862.5,1.26577528]
[1680623138595,0.11000001,1862.7,1862.5,1.82550912]
[1680623138802,0.11000001,1862.7,1862.6,0.34132753]
[1680623139461,0.11000001,1862.7,1862.6,0.56720141]
[1680623140358,0.11000001,1862.7,1862.6,1.12693525]
[1680623140572,0.11000001,1862.7,1862.6,0.91218525]
[1680623141971,0.11000001,1862.7,1862.6,0.78560772]
[1680623142288,0.11000001,1862.7,1862.6,0.22587388]
[1680623142594,0.11000001,1862.7,1862.6,1.0659554]
[1680623144057,0.11000001,1862.7,1862.6,1.2807054]
[1680623144485,0.11000001,1862.7,1862.6,1.0659554]
[1680623145269,0.11000001,1862.7,1862.6,1.2807054]
[1680623145999,0.11000001,1862.7,1862.6,1.0659554]
[1680623148292,0.11000001,1862.7,1862.6,1.2807054]
[1680623148486,0.11000001,1862.7,1862.6,1.0659554]
[1680623148807,0.11000001,1862.7,1862.6,1.2807054]
[1680623149910,0.11000001,1862.7,1862.6,1.0659554]
[1680623150112,0.11000001,1862.7,1862.6,1.2807054]
[1680623150986,0.11000001,1862.7,1862.6,1.0659554]
[1680623151282,0.11000001,1862.7,1862.6,1.2807054]
[1680623151877,0.11000001,1862.7,1862.6,1.0659554]
[1680623152319,0.11000001,1862.7,1862.6,1.2807054]
[1680623152616,0.11000001,1862.7,1862.6,1.0659554]
[1680623155217,0.11000001,1862.7,1862.6,1.2807054]
[1680623155412,0.11000001,1862.7,1862.6,1.0659554]
[1680623156418,0.11000001,1862.7,1862.6,1.2807054]
[1680623156719,0.11000001,1862.7,1862.6,1.0659554]
[1680623159410,0.11000001,1862.7,1862.6,1.15446516]
[1680623160620,0.10750735,1862.7,1862.6,1.15446516]
[1680623166232,0.10750735,1862.7,1862.6,0.72252416]
[1680623166451,0.10750735,1862.7,1862.6,0.93156498]
[1680623167750,0.10750735,1862.7,1862.6,1.13688166]
[1680623168241,0.10750735,1862.7,1862.6,1.35163166]
[1680623168443,0.10750735,1862.7,1862.6,1.21555477]
[1680623169627,0.10750735,1862.7,1862.6,1.21212841]
[1680623172362,0.10750735,1862.7,1862.6,1.00681173]
[1680623173764,0.10750735,1862.7,1862.6,1.22156173]
[1680623174060,0.10750735,1862.7,1862.6,1.00681173]
[1680623174363,0.10750735,1862.7,1862.6,1.22156173]
[1680623174561,0.10750735,1862.7,1862.6,1.00681173]
[1680623174922,0.10750735,1862.7,1862.6,1.22156173]
[1680623176076,0.10750735,1862.7,1862.6,1.38145587]
[1680623177681,0.10750735,1862.7,1862.6,1.00681173]
[1680623178358,0.10750735,1862.7,1862.6,1.22156173]
[1680623178557,0.10750735,1862.7,1862.6,0.37622369]
[1680623178762,0.10750735,1862.7,1862.6,1.71257548]
[1680623178971,0.10750735,1862.7,1862.6,2.42375159]
[1680623179289,0.10750735,1862.7,1862.6,2.66612675]
[1680623180553,0.10750735,1862.7,1862.6,2.78535609]
[1680623181673,0.10750735,1862.7,1862.6,3.02087994]
[1680623183041,0.10750735,1862.7,1862.6,8.24263422]
[1680623183241,0.10750735,1862.7,1862.6,13.53033422]
[1680623185100,0.10750735,1862.7,1862.6,9.90530204]
[1680623185362,0.10750735,1862.7,1862.6,9.66292688]
[1680623186509,0.10750735,1862.7,1862.6,11.06991433]
[1680623188782,0.10750735,1862.7,1862.6,9.66292688]
[1680623189113,0.10750735,1862.7,1862.6,11.06959832]
[1680623189324,0.10750735,1862.7,1862.6,11.92860832]
[1680623189471,0.10750735,1862.7,1862.6,16.0566883]
[1680623189670,0.10750735,1862.7,1862.6,16.05668745]
[1680623190216,0.10750735,1862.7,1862.6,13.05668745]
[1680623190388,0.10750735,1862.7,1862.6,16.05668745]
[1680623191123,0.10750735,1862.7,1862.6,16.05650071]
[1680623191601,0.1050061,1862.7,1862.6,16.05650071]
[1680623193188,0.1050061,1862.7,1862.6,12.43146853]
[1680623193586,0.1050061,1862.7,1862.6,15.19749071]
[1680623193793,0.1050061,1862.7,1862.6,12.19724692]
[1680623194013,0.1050061,1862.7,1862.6,15.19724692]
[1680623198347,0.1050061,1862.7,1862.6,20.10705145]
[1680623198511,0.1050061,1862.7,1862.6,21.79087493]
[1680623199930,0.1050061,1862.7,1862.6,20.10705145]
[1680623200726,0.1050061,1862.7,1862.6,22.02087493]
[1680623200905,0.1050061,1862.7,1862.6,23.44020515]
[1680623203283,0.1050061,1862.7,1862.6,23.21020515]
[1680623203954,0.1050061,1862.7,1862.6,21.52638167]
[1680623204157,0.1050061,1862.7,1862.6,20.23138167]
[1680623204454,0.1050061,1862.7,1862.6,14.56538167]
[1680623205197,0.1050061,1862.7,1862.6,20.23138167]
[1680623205853,0.1050061,1862.7,1862.6,14.56538167]
[1680623206933,0.1050061,1862.7,1862.6,20.23138167]
[1680623209830,0.1050061,1862.7,1862.6,20.23138167]
[1680623211861,0.1050061,1862.7,1862.6,20.46138167]
[1680623212160,0.1050061,1862.7,1862.6,21.10538167]
[1680623213863,0.1050061,1862.7,1862.6,15.20938167]
[1680623214257,0.1050061,1862.7,1862.6,22.55920515]
[1680623214596,0.1050061,1862.7,1862.6,20.87538167]
[1680623216363,0.1023546,1862.7,1862.6,20.87538167]
[1680623217962,0.1023546,1862.7,1862.6,22.55920515]
[1680623219942,0.0003546,1862.7,1862.6,24.75407121]
[1680623220200,0.0003546,1862.7,1862.6,24.89784012]
[1680623220420,0.11000001,1862.9,1862.7,0.5]
[1680623220720,0.11000001,1862.9,1862.8,19.59284283]
[1680623220874,0.11000001,1862.9,1862.8,23.52692393]
[1680623221271,0.11000001,1863.0,1862.9,0.61]
[1680623221544,0.11000001,1863.6,1862.9,19.74034566]